Cogmind - Beta 13 @@@ ROGUE MODE // 2024.05.03 @ 17:56:38 Player: Exceptionally Mediocre Result: Destroyed by D-53 Grenadier with Mini Grenade Launcher Performance ------------- Evolutions (0) 0 Regions Visited (2) 400 Robots Destroyed (26) 130 Value Destroyed (436) 436 Prototype IDs (0) 0 Alien Tech Used (0) 0 Bonus (0) 0 TOTAL SCORE: 966 Bonus ------- None Cogmind --------- Core Integrity 0/250 Matter 266/300 Energy 98/100 System Corruption 7% Temperature Cool (8) Movement Treading (160) Location -10/Mines Parts ------- > --- POWER (1) -------- (None) > --- PROPULSION (2) --- Light Treads > --- UTILITY (2) ------ Small Storage Unit Structural Scanner > --- WEAPON (2) ------- Assault Rifle Grenade Launcher > --- INVENTORY (8) ---- Ion Engine Core Shielding Hacking Suite Hacking Suite Assault Rifle Assault Rifle Assault Rifle Grenade Launcher Peak State ------------ > --- POWER ------------ Ion Engine > --- PROPULSION ------- Light Treads Light Treads > --- UTILITY ---------- Small Storage Unit Improved Terrain Scanner > --- WEAPON ----------- Light Assault Rifle Light Assault Rifle > --- INVENTORY -------- Ion Engine Flight Unit High-capacity Matter Pod Hacking Suite Small Laser Light Cannon Grenade Launcher Grenade Launcher [Rating: 10] Favorites ----------- Power Ion Engine Engine Ion Engine Power Core Light Nuclear Core Propulsion Light Treads Treads Light Treads Utility Small Storage Unit Device Structural Scanner Storage Small Storage Unit Weapon Light Assault Rifle Energy Gun Small Laser Ballistic Gun Light Assault Rifle Launcher Grenade Launcher Build | -11 -10 -10 ------- Run | Yrd Mat Min Slots Evolved . | . . . Power . | . . . Propulsion . | . . . Utility . | . . . Weapon . | . . . Parts Attached 17 | 8 8 1 Power 2 | 1 1 . Engine 1 | 1 . . Core 1 | . 1 . Reactor . | . . . Propulsion 3 | 2 1 . Treads 3 | 2 1 . Leg . | . . . Wheel . | . . . Hover . | . . . Flight . | . . . Utility 5 | 2 3 . Device 3 | 1 2 . Storage 2 | 1 1 . Processor . | . . . Hackware . | . . . Protection . | . . . Artifact . | . . . Weapon 7 | 3 3 1 Energy Gun 1 | 1 . . Energy Cannon . | . . . Ballistic Gun 5 | 2 3 . Ballistic Cannon . | . . . Launcher 1 | . . 1 Special Weapon . | . . . Impact Weapon . | . . . Slashing Weapon . | . . . Piercing Weapon . | . . . Special Melee Weapon . | . . . Unidentified Prototypes . | . . . Parts Lost 4 | . 2 2 Power 1 | . . 1 Propulsion 2 | . 1 1 Utility 1 | . 1 . Weapon . | . . . Highest Loss Streak 2 | . 1 2 To Critical Strikes . | . . . Average Slot Usage (%) 95 | . 95 98 Engine 7 | . 9 . Core 5 | . 4 13 Treads 27 | . 27 27 Device 9 | . 8 14 Storage 15 | . 15 14 Ballistic Gun 25 | . 28 14 Launcher 2 | . . 14 Naked Turns . | . . . Heaviest Build 18 | 13 18 16 Greatest Support 40 | 40 40 40 Greatest Overweight (x) 1 | 1 . . Average Overweight (x) . | . . . Largest Inventory Capacity 8 | 8 8 8 Average Capacity 7 | 7 8 8 Most Carried 8 | 2 8 8 Average Carried 6 | 1 6 8 Final Capacity 8 | 8 8 8 Final Carried 8 | 2 8 8 Class Distribution -------------------- 100% | Mutant Dominant Class ---------------- Mutant | -10/Materials Mutant | -10/Mines Resources | -11 -10 -10 ----------- Run | Yrd Mat Min Matter Collected 824 | 278 461 85 Remotely . | . . . Salvage Created 808 | 101 654 53 Parts 47 | 6 36 5 Haulers Intercepted 1 | . 1 . Recyclers Shooed . | . . . Parts Field Recycled . | . . . Retrieved Matter . | . . . Parts Self-Destructed . | . . . Prevented . | . . . Kills | -11 -10 -10 ------- Run | Yrd Mat Min Combat Hostiles Destroyed 21 | . 13 8 Guns 13 | . 13 . AOE 8 | . . 8 Classes Destroyed 9 | 2 6 1 Worker 3 | . 3 . Builder 1 | . 1 . Tunneler 1 | 1 . . Hauler 1 | . 1 . Recycler 2 | 1 1 . Operator 2 | . 2 . Swarmer 8 | . 5 3 Grunt 8 | . 8 . Assembled 5 | . . 5 Best Kill Streak 5 | 2 5 5 Combat Bots Only 5 | . 4 5 Max Kills in Single Turn 3 | 1 1 3 Gunslinging . | . . . Exploded 3 | . . 3 Melee . | . . . Uniques/NPCs Destroyed . | . . . Combat | -11 -10 -10 -------- Run | Yrd Mat Min Hostile Shots Fired 114 | . 99 15 Missed 29 | . 23 6 Damage Taken 995 | . 800 195 Core 256 | . 171 85 Absorbed by Shields . | . . . Core Remaining (%) 100 | 100 . . Volleys Fired 101 | 9 88 4 Largest 2 | 2 2 1 Hottest 40 | 40 40 30 Shots Fired 198 | 18 176 4 Gun 194 | 18 176 . Cannon . | . . . Launcher 4 | . . 4 Special . | . . . Kinetic 194 | 18 176 . Thermal . | . . . Explosive 4 | . . 4 Electromagnetic . | . . . Robot Hit Streak 7 | 6 7 2 Robot Miss Streak 8 | 2 8 . Penetration Max . | . . . Secondary Targets 2 | . 2 . Max Gunslinging Chain 1 | . 1 . Shots Hit Robots 112 | 11 100 1 Core Hits 58 | 5 39 14 Critical Kills 1 | . 1 . Critical Parts Destroyed 2 | . 2 . Critical Strikes 3 | . 3 . Destroy 3 | . 3 . Melee Attacks . | . . . Impact . | . . . Slashing . | . . . Piercing . | . . . Sneak Attacks . | . . . Combat Hostiles . | . . . Follow-up Attacks . | . . . Damage Inflicted 1385 | 81 931 373 Guns 1010 | 81 929 . Cannons . | . . . Explosions 373 | . . 373 Melee . | . . . Ramming 2 | . 2 . Kinetic 1010 | 81 929 . Thermal . | . . . Explosive 373 | . . 373 Electromagnetic . | . . . Impact . | . . . Slashing . | . . . Piercing . | . . . Highest Corruption 7 | . . 7 Average Corruption 7 | . . 7 Corruption Purged . | . . . Corruption Blocked . | . . . Overload Shots . | . . . Overflow Damage 4 | . . 4 Projectiles . | . . . Explosions 4 | . . 4 Melee . | . . . Knockbacks . | . . . Impact . | . . . Kinetic . | . . . Secondary . | . . . Self-Inflicted Damage . | . . . Shots . | . . . Rammed 1 | . 1 . Targets Rammed 1 | . 1 . Kicked . | . . . Crushed . | . . . Highest Temperature 36 | . 36 35 Average Temperature 9 | . 8 13 Received Heat Transfer 448 | . 348 100 Siege Activations . | . . . Robots Corrupted . | . . . Combat Hostiles . | . . . Parts Fried . | . . . Impact Corruptions . | . . . Robots Melted . | . . . Combat Hostiles . | . . . Parts Melted . | . . . Heat Transferred . | . . . Parts Sabotaged . | . . . Parts Stolen . | . . . Parts Stripped . | . . . Power Chain Reactions . | . . . Alert | -11 -10 -10 ------- Run | Yrd Mat Min Peak Influence 210 | 10 210 167 Initial 42 | . 6 42 Average 92 | 4 96 136 Maximum Alert Level 1 | . 1 . Low Security (%) 97 | 100 97 100 Level 1 2 | . 2 . Level 2 . | . . . Level 3 . | . . . Level 4 . | . . . Level 5 . | . . . High Security . | . . . Max Security . | . . . Squads Dispatched 3 | . 3 . Investigation 1 | . 1 . Extermination . | . . . Reinforcement 2 | . 2 . Assault . | . . . Garrison . | . . . Intercept . | . . . Searches Triggered . | . . . Construction Impeded . | . . . Haulers Reinforced . | . . . Active Scanning Responses . | . . . Cargo Convoy Interrupts . | . . . Stealth | -11 -10 -10 --------- Run | Yrd Mat Min Distress Signals . | . . . Communications Jammed . | . . . Distress Signals . | . . . Times Spotted 40 | . 24 16 Peak Tracking Total 11 | . 5 11 Tactical Retreats 1 | . 1 . Traps | -11 -10 -10 ------- Run | Yrd Mat Min Traps Triggered . | . . . Indirectly . | . . . Trap Hack Attempts . | . . . Triggered . | . . . Disarmed . | . . . Reprogrammed . | . . . Reused . | . . . Traps Extracted . | . . . Installed . | . . . Triggered . | . . . Machines | -11 -10 -10 ---------- Run | Yrd Mat Min Machines Disabled 1 | . . 1 Max in Single Turn 1 | . . 1 Machines Repaired . | . . . Machines Dismantled . | . . . Machines Sabotaged . | . . . Overloaded Fab Kills . | . . . Hacking | -11 -10 -10 --------- Run | Yrd Mat Min Machines Accessed 4 | . 4 . Terminals 2 | . 2 . Fabricators . | . . . Repair Stations . | . . . Recycling Units 2 | . 2 . Scanalyzers . | . . . Garrison Access . | . . . Total Hacks 9 | . 9 . Successful 2 | . 2 . Failed 7 | . 7 . Catastrophic 1 | . 1 . Database Lockouts . | . . . Manual 5 | . 5 . Terminals 5 | . 5 . Fabricators . | . . . Repair Stations . | . . . Recycling Units 4 | . 4 . Scanalyzers . | . . . Garrison Access . | . . . Terminal Hacks . | . . . Fabricator Hacks . | . . . Repair Station Hacks . | . . . Recycling Unit Hacks 2 | . 2 . Retrieve Components 2 | . 2 . Scanalyzer . | . . . Garrison Access Hacks . | . . . Unauthorized Hacks . | . . . Terminals . | . . . Fabricators . | . . . Repair Stations . | . . . Recycling Units . | . . . Scanalyzers . | . . . Garrison Access . | . . . Data Cores Recovered . | . . . Used . | . . . Hacking Detections 2 | . 2 . Full Trace Events 1 | . 1 . Feedback Events . | . . . Feedback Blocked . | . . . Robot Schematics Acquired . | . . . Robots Built . | . . . Authchips . | . . . Time . | . . . Total Robot Build Rating . | . . . Part Schematics Acquired . | . . . Parts Built . | . . . Authchips . | . . . Time . | . . . Total Part Build Rating . | . . . Parts Repaired . | . . . Time . | . . . Parts Recycled . | . . . Recycled Matter . | . . . Retrieved Matter . | . . . Retrieved Components 10 | . 10 . Parts Scanalyzed . | . . . Part Schematics Acquired . | . . . Parts Damaged . | . . . Bothacking | -11 -10 -10 ------------ Run | Yrd Mat Min Used RIF Installer . | . . . Robots Hacked . | . . . Non-combat . | . . . Combat . | . . . Robot Hacks Applied . | . . . Relay Couplers Released . | . . . Fabnet Peak Effective % . | . . . Robots Rewired . | . . . Allies Hacked . | . . . Hacks Repelled . | . . . Allies | -11 -10 -10 -------- Run | Yrd Mat Min Total Allies . | . . . Largest Group . | . . . Highest-Rated Group . | . . . Highest-Rated Ally . | . . . Total Orders . | . . . Ally Attacks . | . . . Total Damage . | . . . Kills . | . . . Allies Corrupted . | . . . Allies Melted . | . . . Intel | -11 -10 -10 ------- Run | Yrd Mat Min Robot Analysis Total . | . . . Derelict Logs Recovered 1 | . . 1 Drone Launches . | . . . Drone Recoveries . | . . . Exploration | -11 -10 -10 ------------- Run | Yrd Mat Min Turns Passed 1199 | 120 922 157 Spaces Moved 542 | 55 395 92 Core 5 | 5 . . Treads 537 | 50 395 92 Legs . | . . . Wheels . | . . . Hover . | . . . Flight . | . . . Fastest Speed 50 | 50 160 160 Average Speed 159 | 152 160 160 Slowest Speed 160 | 160 160 160 Overloaded Moves . | . . . Propulsion Burnouts . | . . . Robots Hopped . | . . . Cave-ins Triggered . | . . . Exploration Rate (%) 35 | 4 65 37 Regions Visited 2 Branch Regions 1 Pre-discovered Areas . | . . . Known Exits Taken . | . . . Unknown Exits Taken 2 | 1 1 . Scrap Searched . | . . . Spaces Dug 16 | . . 16 Terrain Destroyed 32 | . . 32 Melee . | . . . Projectile . | . . . AOE 32 | . . 32 Terrain Rammed . | . . . Walls Destroyed . | . . . Machines Disabled . | . . . Actions | -11 -10 -10 --------- Run | Yrd Mat Min Total 712 | 73 541 98 Wait 14 | . 14 . Move 540 | 54 394 92 Hop . | . . . Pick Up 21 | 2 19 . Fast Attach 10 | 7 3 . Attach 1 | . 1 . Detach . | . . . Swap 6 | 1 4 1 Drop 17 | . 17 . Fire 101 | 9 88 4 Melee . | . . . Ram . | . . . Kick . | . . . Crush 1 | . 1 . Escape Stasis . | . . . Rewire 1 | . . 1 Trap . | . . . Miscellaneous . | . . . Route ------- -11/Scrapyard -10/Materials (discovered 3 exits: [*Mat] / [*Min x2]) -10/Mines (discovered 1 exit: [*Mat]) History --------- Turn | Location | Event 24 | -11/Scrapyard | Discovered new exit (range 15) 121 | -11/Scrapyard | Entered Materials 312 | -10/Materials | Build established: Mutant 447 | -10/Materials | Discovered new exit (range 12) 700 | -10/Materials | Core integrity fell below 50% 796 | -10/Materials | Discovered new exit (range 13) 863 | -10/Materials | Discovered new exit (range 6) 1043 | -10/Materials | Entered Mines 1077 | -10/Mines | Discovered new exit (range 7) 1171 | -10/Mines | Assembled infested the area 1178 | -10/Mines | Learned location of 2 exits from Materials 1200 | -10/Mines | Destroyed by D-53 Grenadier with Mini Grenade Launcher Last Messages --------------- 01133_ Acquired 85 matter. 01135_ K-01 Serf collects debris. 01171_ ALERT: Infestation in the mines, dispatching Demolisher response squad. 01173_ K-01 Serf collects debris. 01178_ Acquired derelict log, extracted data. Data stored: Materials exits (x2). 01189_ as-07781 destroyed. 01189_ as-35863 destroyed. 01191_ Destroyed Asb. F-torch. 01193_ C-30 ARC bursts open, deploying its payload. 01193_ D-53 Grenadier unfolds itself. 01198_ as-60295 destroyed. 01198_ as-79435 destroyed. 01198_ as-74868 destroyed. 01199_ Lgt. Treads destroyed. 01199_ Lgt. Nuclear Core destroyed. 01199_ System corrupted by crushing effect (+2). 01199_ System corrupted by crushing effect (+5). Map ----- +----------------------------------------------------+ | ???????????????????????????### ###???????? | | ???????????????????????????## """" ###???????? | | ???????????????????????????## """" ##???????? | | ???????????????????????????## """" < ##???????# | | ???????????????????????????### ########### | | ???????????????????????????#### ############ | | ????????????????????????????#### ##### ### | | ?????????????????????????????### ####### | | ??????????????????????????????## #####?# | | ?????????????????????????????### ##???### | | ????????????????????????????#### ###?#### # | | ????????????????????????????### ####### # | | ????????????????????????????## ##### | | ????????????????????????????##! ### | | ????????????????????????????##] [ # | | ????????????????????????????## ### | | ????????????????????????????### ######## #### | | ????????????????????????????### ######### #### | | ???????????###???????????????## ! ##????### #### | | ???????????## ???????????????### ########## ## | | ???????????## ?????????????############### | | ???????????### ?????????############ | | ????????????## ? ################ % | | ????????????## ####### = | | ???????????? ## k # d | | ?????????????### @aa ####### ## | | ??????????????### ############ | | ??????????????### ##### % ###???####### | | ???????????????## #### ###????????# | | ????????????????????#### ###?????????? | | ????????????????????#######a ###????????? | | ??????????????????????#### ##???????## | | ?????????????????????????? ##???????### # | | ????????????????????????? ##???????### ### # | | ????????????????????????? ###???????? ### # | | ???????????????????????? ######????????? ####? # | | ???????????????????????? ######?????????? ###??$ # | | ??????????????????????? ##????????????????????? # | | ??????????????????????? ?????????????????????????? | | ?????????????????????????????????????????????????? | | ?????????????????????????????????????????????????? | | ?????????????????????????????????????????????????? | | ?????????????????????????????????????????????????? | | ?????????????????????????????????????????????????? | | ?????????????????????????????????????????????????? | | ?????????????????????????????????????????????????? | | ?????????????????????????????????????????????????? | | ?????????????????????????????????????????????????? | | ?????????????????????????????????????????????????? | | ?????????????????????????????????????????????????? | +----------------------------------------------------+ Best States ------------- Heat Dissipation 25 Energy Generation 14 Energy Capacity 250 Matter Stores 438 Matter Capacity 500 Sight Range 16 Terrain Scan Range 16 Terrain Scan Density 10 Evasion (%) 40 Recoil Reduction 2 Item Schematics ----------------- None Robot Schematics ------------------ None Fabricated ------------ Nothing Alien Tech Used ----------------- None Achievements -------------- None Challenges ------------ None Game ------ Seed ReflectiveBarrageShredder Manual? 0 Play Time 00:08:45 Cumulative 150.0 hours Start 2024.05.03 @ 17:47:57 End 2024.05.03 @ 17:56:38 Sessions 1 Manual Loads 0 Difficulty Rogue Special Mode None Game No. 170 Rogue 170 Adventurer 0 Explorer 0 Win Type - Total 0 Types 0/0/0/0/0/0/0/0/0 Lore% 33 Gallery% 59 Achievement% 41 Wizard Run 0 Options --------- Layout 1 ASCII 0 Keyboard 1 Movement Vi Keybinds 0 Fullscreen 1 Font 24/Smallcaps Map View 50x35 Zoom Use 0% Tactical HUD 1 Map Filters NONE Filters NONE Steam 1 RUN: 9f22b843-be33-42b1-98cf-6556daa65098